[Event "*** Titled Tuesday Blitz"]
[Site "Chess.com"]
[Date "2020.11.03"]
[Round "9"]
[White "Tactictic"]
[Black "korbul"]
[Result "1-0"]
[WhiteElo "2417"]
[BlackElo "2525"]
[TimeControl "180+1"]
[EndTime "11:50:19 PST"]
[Termination "Tactictic won by checkmate"]

1. e4 {[%clk 0:03:00.9]} 1... c5 {[%clk 0:02:59.4]} 2. Nf3 {[%clk 0:03:00.7]}
2... e6 {[%clk 0:02:59.8]} 3. d4 {[%clk 0:03:01.2]} 3... cxd4 {[%clk 0:03:00]}
4. Nxd4 {[%clk 0:03:02.1]} 4... Nf6 {[%clk 0:02:59.5]} 5. Nc3 {[%clk 0:03:01.1]}
5... d6 {[%clk 0:02:59.8]} 6. Bg5 {[%clk 0:02:59.7]} 6... Be7 {[%clk 0:02:57.8]}
7. Qd2 {[%clk 0:02:59.5]} 7... a6 {[%clk 0:02:56.8]} 8. O-O-O {[%clk 0:02:59]}
8... O-O {[%clk 0:02:51.4]} 9. f4 {[%clk 0:02:58.3]} 9... Qc7 {[%clk 0:02:48.1]}
10. Bxf6 {[%clk 0:02:56.5]} 10... Bxf6 {[%clk 0:02:47.4]} 11. f5 {[%clk
0:02:56.6]} 11... Nc6 {[%clk 0:02:46.3]} 12. Nf3 {[%clk 0:02:45]} 12... Qa5
{[%clk 0:02:39.5]} 13. e5 {[%clk 0:02:15.8]} 13... Nxe5 {[%clk 0:02:32.6]} 14.
fxe6 {[%clk 0:01:48.2]} 14... Bxe6 {[%clk 0:02:21.8]} 15. Nd4 {[%clk 0:01:48]}
15... Bg5 {[%clk 0:02:06.7]} 16. Qxg5 {[%clk 0:01:40.7]} 16... Nd3+ {[%clk
0:02:06.3]} 17. Bxd3 {[%clk 0:01:41]} 17... Qxg5+ {[%clk 0:02:06]} 18. Kb1
{[%clk 0:01:41.9]} 18... Rac8 {[%clk 0:02:03]} 19. Ne4 {[%clk 0:01:41.7]} 19...
Qe5 {[%clk 0:01:59.7]} 20. Nf3 {[%clk 0:01:41]} 20... Qa5 {[%clk 0:01:53]} 21.
b3 {[%clk 0:01:39.9]} 21... Rfd8 {[%clk 0:01:51.1]} 22. Rhe1 {[%clk 0:01:37.8]}
22... h6 {[%clk 0:01:50.4]} 23. Nd4 {[%clk 0:01:34.3]} 23... Qh5 {[%clk
0:01:43.8]} 24. h3 {[%clk 0:01:26.5]} 24... d5 {[%clk 0:01:42.1]} 25. Nf2 {[%clk
0:01:19.8]} 25... Re8 {[%clk 0:01:38.2]} 26. Nf3 {[%clk 0:01:08.8]} 26... d4
{[%clk 0:01:17.1]} 27. Re5 {[%clk 0:01:01.6]} 27... f5 {[%clk 0:01:00.1]} 28.
Nxd4 {[%clk 0:00:59.9]} 28... Bd7 {[%clk 0:00:56.3]} 29. Rd5 {[%clk 0:00:48.2]}
29... Qh4 {[%clk 0:00:53.2]} 30. Rxd7 {[%clk 0:00:27.4]} 30... Qxf2 {[%clk
0:00:52.1]} 31. Nxf5 {[%clk 0:00:27.6]} 31... Re1 {[%clk 0:00:46.6]} 32. Ne7+
{[%clk 0:00:20]} 32... Rxe7 {[%clk 0:00:44.7]} 33. Rxe7 {[%clk 0:00:20.9]} 33...
Qxg2 {[%clk 0:00:44.4]} 34. Bc4+ {[%clk 0:00:20.8]} 34... Kh8 {[%clk 0:00:43.8]}
35. Rdd7 {[%clk 0:00:20]} 35... b5 {[%clk 0:00:43.3]} 36. Bd3 {[%clk 0:00:18.4]}
36... b4 {[%clk 0:00:43.7]} 37. Ra7 {[%clk 0:00:16.6]} 37... Rf8 {[%clk
0:00:43.4]} 38. Rxa6 {[%clk 0:00:14.2]} 38... Qg1+ {[%clk 0:00:43.7]} 39. Kb2
{[%clk 0:00:13]} 39... Qd4+ {[%clk 0:00:43.7]} 40. Kc1 {[%clk 0:00:13.5]} 40...
Qf4+ {[%clk 0:00:42.2]} 41. Kd1 {[%clk 0:00:10.9]} 41... Qg5 {[%clk 0:00:39.1]}
42. Re1 {[%clk 0:00:08.7]} 42... Qh5+ {[%clk 0:00:37.8]} 43. Kc1 {[%clk
0:00:08.3]} 43... Qxh3 {[%clk 0:00:37.9]} 44. Rae6 {[%clk 0:00:07.2]} 44... Qg3
{[%clk 0:00:37.7]} 45. Kb2 {[%clk 0:00:07.1]} 45... Qf4 {[%clk 0:00:36.5]} 46.
a4 {[%clk 0:00:07]} 46... bxa3+ {[%clk 0:00:36]} 47. Kxa3 {[%clk 0:00:07.9]}
47... h5 {[%clk 0:00:33.7]} 48. R1e5 {[%clk 0:00:07]} 48... g6 {[%clk
0:00:28.6]} 49. Bxg6 {[%clk 0:00:04.7]} 49... Kg7 {[%clk 0:00:27.9]} 50. Bd3
{[%clk 0:00:03.3]} 50... Ra8+ {[%clk 0:00:28.4]} 51. Kb2 {[%clk 0:00:02.9]}
51... Qd4+ {[%clk 0:00:28.6]} 52. Kc1 {[%clk 0:00:03.3]} 52... Ra1+ {[%clk
0:00:27.5]} 53. Kd2 {[%clk 0:00:04.2]} 53... Qf4+ {[%clk 0:00:27.5]} 54. Kc3
{[%clk 0:00:04]} 54... Rg1 {[%clk 0:00:24.3]} 55. Re7+ {[%clk 0:00:03.8]} 55...
Kg8 {[%clk 0:00:24.4]} 56. Re8+ {[%clk 0:00:02.7]} 56... Kf7 {[%clk 0:00:24.6]}
57. R5e7+ {[%clk 0:00:02.6]} 57... Kf6 {[%clk 0:00:24]} 58. Rf8+ {[%clk
0:00:02.9]} 58... Kxe7 {[%clk 0:00:23.8]} 59. Rxf4 {[%clk 0:00:03.8]} 59... h4
{[%clk 0:00:24.6]} 60. Rxh4 {[%clk 0:00:04.1]} 60... Rg3 {[%clk 0:00:25]} 61.
Rd4 {[%clk 0:00:04.7]} 61... Ke6 {[%clk 0:00:25.1]} 62. b4 {[%clk 0:00:05.3]}
62... Ke5 {[%clk 0:00:26]} 63. Kc4 {[%clk 0:00:05.9]} 63... Rg1 {[%clk
0:00:26.3]} 64. c3 {[%clk 0:00:06.4]} 64... Rb1 {[%clk 0:00:27.2]} 65. Re4+
{[%clk 0:00:06.8]} 65... Kf5 {[%clk 0:00:26.8]} 66. Re1+ {[%clk 0:00:06.5]}
66... Kf6 {[%clk 0:00:27.7]} 67. Rxb1 {[%clk 0:00:07.2]} 67... Ke7 {[%clk
0:00:27.3]} 68. b5 {[%clk 0:00:07.7]} 68... Kd6 {[%clk 0:00:28.2]} 69. b6 {[%clk
0:00:08.3]} 69... Kc6 {[%clk 0:00:28.1]} 70. b7 {[%clk 0:00:08.8]} 70... Kd7
{[%clk 0:00:27.3]} 71. b8=Q {[%clk 0:00:08.9]} 71... Kc6 {[%clk 0:00:28.2]} 72.
Rb6+ {[%clk 0:00:08.5]} 72... Kd7 {[%clk 0:00:29.1]} 73. Rd6+ {[%clk 0:00:09.2]}
73... Ke7 {[%clk 0:00:29.4]} 74. Qd8+ {[%clk 0:00:10.1]} 74... Kf7 {[%clk
0:00:30.3]} 75. Rf6+ {[%clk 0:00:10.5]} 75... Kg7 {[%clk 0:00:31.2]} 76. Qf8#
{[%clk 0:00:11]} 1-0

[Event "*** Titled Tuesday Blitz"]
[Site "Chess.com"]
[Date "2020.11.03"]
[Round "9"]
[White "dpopadic"]
[Black "Grandmaster1369"]
[Result "1/2-1/2"]
[WhiteElo "2399"]
[BlackElo "2306"]
[TimeControl "180+1"]
[EndTime "11:50:23 PST"]
[Termination "Game drawn by repetition"]

1. e4 {[%clk 0:03:00.9]} 1... c5 {[%clk 0:02:58.8]} 2. Nc3 {[%clk 0:02:59.9]}
2... Nc6 {[%clk 0:02:58.1]} 3. f4 {[%clk 0:02:59.1]} 3... g6 {[%clk 0:02:56.9]}
4. Nf3 {[%clk 0:02:59.1]} 4... Bg7 {[%clk 0:02:56]} 5. Bc4 {[%clk 0:02:58.8]}
5... d6 {[%clk 0:02:54.5]} 6. d3 {[%clk 0:02:58.5]} 6... e6 {[%clk 0:02:55]} 7.
O-O {[%clk 0:02:58.3]} 7... Nge7 {[%clk 0:02:55.1]} 8. Qe1 {[%clk 0:02:58.4]}
8... O-O {[%clk 0:02:47.4]} 9. f5 {[%clk 0:02:57.8]} 9... gxf5 {[%clk
0:02:45.6]} 10. Qh4 {[%clk 0:02:57.1]} 10... fxe4 {[%clk 0:02:29]} 11. dxe4
{[%clk 0:02:53.4]} 11... Ng6 {[%clk 0:02:15.2]} 12. Qh5 {[%clk 0:02:53.1]} 12...
Nd4 {[%clk 0:01:55]} 13. Nxd4 {[%clk 0:02:44.4]} 13... Bxd4+ {[%clk 0:01:52.6]}
14. Kh1 {[%clk 0:02:44]} 14... Qh4 {[%clk 0:01:51.8]} 15. Qxh4 {[%clk
0:02:40.8]} 15... Nxh4 {[%clk 0:01:51.8]} 16. Nb5 {[%clk 0:02:40.5]} 16... Be5
{[%clk 0:01:48]} 17. Bf4 {[%clk 0:02:32]} 17... Ng6 {[%clk 0:01:45.5]} 18. Bxe5
{[%clk 0:02:30.5]} 18... Nxe5 {[%clk 0:01:38.8]} 19. Be2 {[%clk 0:02:08]} 19...
Bd7 {[%clk 0:01:38.4]} 20. Nxd6 {[%clk 0:02:06.5]} 20... Bc6 {[%clk 0:01:38.3]}
21. Rad1 {[%clk 0:02:01.1]} 21... Rad8 {[%clk 0:01:35.9]} 22. Rd2 {[%clk
0:01:36.5]} 22... Rd7 {[%clk 0:01:29.7]} 23. Rfd1 {[%clk 0:01:34.8]} 23... Rfd8
{[%clk 0:01:29.7]} 24. Kg1 {[%clk 0:01:28.8]} 24... Kf8 {[%clk 0:01:28.2]} 25.
Kf2 {[%clk 0:00:57.8]} 25... Ke7 {[%clk 0:01:27.3]} 26. Nc4 {[%clk 0:00:56.9]}
26... Nxc4 {[%clk 0:01:12.1]} 27. Rxd7+ {[%clk 0:00:55.9]} 27... Rxd7 {[%clk
0:01:12]} 28. Rxd7+ {[%clk 0:00:55.6]} 28... Kxd7 {[%clk 0:01:12.9]} 29. Bxc4
{[%clk 0:00:55.7]} 29... Bxe4 {[%clk 0:01:12.5]} 30. c3 {[%clk 0:00:55.9]} 30...
Kc6 {[%clk 0:01:11.7]} 31. g3 {[%clk 0:00:55.6]} 31... b5 {[%clk 0:01:10.3]} 32.
Be2 {[%clk 0:00:54.6]} 32... c4 {[%clk 0:00:58.7]} 33. a3 {[%clk 0:00:53.4]}
33... Kd5 {[%clk 0:00:52.4]} 34. Ke3 {[%clk 0:00:53.3]} 34... Ke5 {[%clk
0:00:52.2]} 35. Bh5 {[%clk 0:00:50.6]} 35... f5 {[%clk 0:00:34.7]} 36. Be8
{[%clk 0:00:46.3]} 36... a6 {[%clk 0:00:34.8]} 37. Bd7 {[%clk 0:00:46]} 37...
Bb7 {[%clk 0:00:34.2]} 38. h4 {[%clk 0:00:38.1]} 38... Kf6 {[%clk 0:00:32.1]}
39. Be8 {[%clk 0:00:29.3]} 39... Ke7 {[%clk 0:00:32]} 40. Bh5 {[%clk 0:00:28.7]}
40... e5 {[%clk 0:00:32.4]} 41. Bd1 {[%clk 0:00:27.1]} 41... Bc6 {[%clk
0:00:31.7]} 42. Bc2 {[%clk 0:00:26.6]} 42... Ke6 {[%clk 0:00:31.4]} 43. Bd1
{[%clk 0:00:25.9]} 43... h6 {[%clk 0:00:31.6]} 44. Be2 {[%clk 0:00:25.7]} 44...
Be4 {[%clk 0:00:30.1]} 45. Bf1 {[%clk 0:00:25.1]} 45... Bd5 {[%clk 0:00:28.9]}
46. Bh3 {[%clk 0:00:24.8]} 46... Kf6 {[%clk 0:00:27.9]} 47. Bf1 {[%clk 0:00:24]}
47... Bc6 {[%clk 0:00:25.9]} 48. Be2 {[%clk 0:00:24]} 48... Ke6 {[%clk 0:00:20]}
49. Bh5 {[%clk 0:00:23.4]} 49... Kd6 {[%clk 0:00:19.5]} 50. Bg6 {[%clk
0:00:22.1]} 50... Bd7 {[%clk 0:00:19]} 51. Bh5 {[%clk 0:00:21.3]} 51... Kc5
{[%clk 0:00:19.1]} 52. Bd1 {[%clk 0:00:20]} 52... a5 {[%clk 0:00:19.5]} 53. Bc2
{[%clk 0:00:20]} 53... b4 {[%clk 0:00:19.8]} 54. axb4+ {[%clk 0:00:19.4]} 54...
axb4 {[%clk 0:00:20.7]} 55. Bb1 {[%clk 0:00:18.1]} 55... bxc3 {[%clk 0:00:14.4]}
56. bxc3 {[%clk 0:00:17.1]} 56... Kb5 {[%clk 0:00:14.7]} 57. Bc2 {[%clk
0:00:16.8]} 57... Be6 {[%clk 0:00:14]} 58. Kf3 {[%clk 0:00:16.6]} 58... Bd5+
{[%clk 0:00:12.9]} 59. Ke3 {[%clk 0:00:16.6]} 59... Be6 {[%clk 0:00:13.5]} 60.
Kf3 {[%clk 0:00:16.6]} 60... Kc5 {[%clk 0:00:14.1]} 61. Ke3 {[%clk 0:00:16.7]}
61... Bd7 {[%clk 0:00:14.5]} 62. Bb1 {[%clk 0:00:16.1]} 62... Kb5 {[%clk
0:00:10.9]} 63. Bc2 {[%clk 0:00:16.1]} 63... Be6 {[%clk 0:00:08.8]} 1/2-1/2

[Event "*** Titled Tuesday Blitz"]
[Site "Chess.com"]
[Date "2020.11.03"]
[Round "9"]
[White "Promacherr"]
[Black "Lion-Al-Messi"]
[Result "1-0"]
[WhiteElo "2704"]
[BlackElo "2555"]
[TimeControl "180+1"]
[EndTime "11:50:32 PST"]
[Termination "Promacherr won by resignation"]

1. e4 {[%clk 0:03:00.9]} 1... b6 {[%clk 0:02:52.2]} 2. d4 {[%clk 0:03:00.4]}
2... Bb7 {[%clk 0:02:52.7]} 3. Bd3 {[%clk 0:03:00.5]} 3... e6 {[%clk 0:02:52.9]}
4. Nf3 {[%clk 0:03:00.3]} 4... c5 {[%clk 0:02:52.6]} 5. c3 {[%clk 0:03:00.1]}
5... Nf6 {[%clk 0:02:53]} 6. e5 {[%clk 0:02:59.5]} 6... Nd5 {[%clk 0:02:52.1]}
7. O-O {[%clk 0:02:59.6]} 7... cxd4 {[%clk 0:02:52]} 8. cxd4 {[%clk 0:02:59.5]}
8... Nc6 {[%clk 0:02:52.1]} 9. Nc3 {[%clk 0:02:59.2]} 9... Ncb4 {[%clk
0:02:50.8]} 10. Bb1 {[%clk 0:02:45.8]} 10... Rc8 {[%clk 0:02:50.8]} 11. Ne4
{[%clk 0:02:39]} 11... Be7 {[%clk 0:02:38.9]} 12. a3 {[%clk 0:02:38.9]} 12...
Nc6 {[%clk 0:02:38.7]} 13. Bg5 {[%clk 0:02:39]} 13... O-O {[%clk 0:02:36.6]} 14.
Bxe7 {[%clk 0:02:39]} 14... Qxe7 {[%clk 0:02:37.5]} 15. Nd6 {[%clk 0:02:39]}
15... Rc7 {[%clk 0:02:35.7]} 16. Qd3 {[%clk 0:02:28.8]} 16... f5 {[%clk
0:02:35.8]} 17. exf6 {[%clk 0:02:20.1]} 17... Nxf6 {[%clk 0:02:36]} 18. Nxb7
{[%clk 0:02:17]} 18... Rxb7 {[%clk 0:02:36.3]} 19. Ne5 {[%clk 0:02:17.2]} 19...
Rc7 {[%clk 0:02:32.5]} 20. Ng4 {[%clk 0:02:07.9]} 20... Kh8 {[%clk 0:02:30.3]}
21. Nxf6 {[%clk 0:02:04.2]} 21... gxf6 {[%clk 0:02:31.2]} 22. Re1 {[%clk
0:01:52.9]} 22... Rg8 {[%clk 0:02:28.9]} 23. Qe3 {[%clk 0:01:39.7]} 23... Qg7
{[%clk 0:02:28.3]} 24. Be4 {[%clk 0:01:36.2]} 24... Ne7 {[%clk 0:02:27.7]} 25.
g3 {[%clk 0:01:28.6]} 25... f5 {[%clk 0:02:24.6]} 26. Bf3 {[%clk 0:01:27.5]}
26... Ng6 {[%clk 0:02:23.4]} 27. Rac1 {[%clk 0:01:23.3]} 27... f4 {[%clk
0:02:22.3]} 28. Qe4 {[%clk 0:01:19.3]} 28... Rxc1 {[%clk 0:02:13]} 29. Rxc1
{[%clk 0:01:20.2]} 29... fxg3 {[%clk 0:02:13.7]} 30. hxg3 {[%clk 0:01:20.7]}
30... Rf8 {[%clk 0:02:09.8]} 31. Bg2 {[%clk 0:01:09.1]} 31... Qf6 {[%clk
0:02:09.4]} 32. Qe3 {[%clk 0:01:07.9]} 32... Ne7 {[%clk 0:02:08.6]} 33. Rc7
{[%clk 0:01:05.3]} 33... Nf5 {[%clk 0:02:08.5]} 34. Qe5 {[%clk 0:00:57.7]} 34...
Nxd4 {[%clk 0:01:55.2]} 35. Qxf6+ {[%clk 0:00:57.7]} 35... Rxf6 {[%clk
0:01:56.1]} 36. Rxd7 {[%clk 0:00:58.1]} 36... Ne2+ {[%clk 0:01:56.4]} 37. Kf1
{[%clk 0:00:52.4]} 37... Nxg3+ {[%clk 0:01:56.5]} 38. Ke1 {[%clk 0:00:52.9]}
38... Nf5 {[%clk 0:01:53.2]} 39. Rxa7 {[%clk 0:00:52.6]} 39... h5 {[%clk
0:01:49.5]} 40. Rb7 {[%clk 0:00:47.7]} 40... e5 {[%clk 0:01:49]} 41. b4 {[%clk
0:00:42.6]} 41... h4 {[%clk 0:01:48.5]} 42. a4 {[%clk 0:00:41.9]} 42... Nd4
{[%clk 0:01:36.5]} 43. Be4 {[%clk 0:00:39.7]} 43... Rh6 {[%clk 0:01:30.9]} 44.
Kf1 {[%clk 0:00:36.4]} 44... h3 {[%clk 0:01:30]} 45. a5 {[%clk 0:00:29.3]} 45...
bxa5 {[%clk 0:01:29.5]} 46. bxa5 {[%clk 0:00:30.2]} 46... h2 {[%clk 0:01:29.6]}
47. Bh1 {[%clk 0:00:24.8]} 47... Rg6 {[%clk 0:01:26.3]} 48. Bg2 {[%clk
0:00:20.5]} 48... Rh6 {[%clk 0:01:06.6]} 49. Bh1 {[%clk 0:00:20.4]} 49... Rg6
{[%clk 0:01:07.1]} 50. Bg2 {[%clk 0:00:20.7]} 50... e4 {[%clk 0:01:07.7]} 51.
Rb8+ {[%clk 0:00:19.4]} 51... Kg7 {[%clk 0:01:06.8]} 52. Rb7+ {[%clk 0:00:19.3]}
52... Kf8 {[%clk 0:01:02.5]} 53. Rb6 {[%clk 0:00:19.5]} 53... Rg5 {[%clk
0:00:38.5]} 54. a6 {[%clk 0:00:14.7]} 54... Ra5 {[%clk 0:00:38.4]} 55. Bh1
{[%clk 0:00:14.1]} 55... Ke7 {[%clk 0:00:25.9]} 56. Rb7+ {[%clk 0:00:12.1]}
56... Kd6 {[%clk 0:00:25.8]} 57. a7 {[%clk 0:00:12.5]} 57... Ke5 {[%clk
0:00:21.1]} 58. Re7+ {[%clk 0:00:11.2]} 58... Ne6 {[%clk 0:00:21.1]} 59. Kg2
{[%clk 0:00:05.5]} 59... Kf6 {[%clk 0:00:14.4]} 60. Rb7 {[%clk 0:00:05.4]} 60...
Nf4+ {[%clk 0:00:13.4]} 61. Kxh2 {[%clk 0:00:05.6]} 61... Rh5+ {[%clk
0:00:09.9]} 62. Kg3 {[%clk 0:00:05.8]} 62... Ne2+ {[%clk 0:00:09.6]} 63. Kg4
{[%clk 0:00:05.8]} 63... Rg5+ {[%clk 0:00:08.1]} 64. Kh3 {[%clk 0:00:06.1]}
64... Ra5 {[%clk 0:00:09]} 65. Bxe4 {[%clk 0:00:04.6]} 65... Ra3+ {[%clk
0:00:08.9]} 66. f3 {[%clk 0:00:04.1]} 66... Ke5 {[%clk 0:00:07.9]} 67. Rb5+
{[%clk 0:00:04]} 67... Kf4 {[%clk 0:00:07.5]} 68. a8=Q {[%clk 0:00:04.9]} 68...
Ng1+ {[%clk 0:00:06.5]} 69. Kg2 {[%clk 0:00:03.6]} 1-0

[Event "*** Titled Tuesday Blitz"]
[Site "Chess.com"]
[Date "2020.11.03"]
[Round "9"]
[White "German_Bazeev"]
[Black "boasovietica"]
[Result "0-1"]
[WhiteElo "2729"]
[BlackElo "2569"]
[TimeControl "180+1"]
[EndTime "11:50:33 PST"]
[Termination "boasovietica won on time"]

1. d4 {[%clk 0:02:56.3]} 1... Nf6 {[%clk 0:02:59.6]} 2. Nf3 {[%clk 0:02:56.9]}
2... g6 {[%clk 0:02:58.6]} 3. c4 {[%clk 0:02:57.3]} 3... Bg7 {[%clk 0:02:58.9]}
4. Nc3 {[%clk 0:02:57.9]} 4... O-O {[%clk 0:02:59.6]} 5. Bg5 {[%clk 0:02:57.3]}
5... d6 {[%clk 0:02:49]} 6. e3 {[%clk 0:02:56.2]} 6... c5 {[%clk 0:02:47.1]} 7.
Be2 {[%clk 0:02:54.2]} 7... Nc6 {[%clk 0:02:45.6]} 8. O-O {[%clk 0:02:53.7]}
8... Bg4 {[%clk 0:02:12.8]} 9. d5 {[%clk 0:02:25.6]} 9... Na5 {[%clk 0:02:11.5]}
10. Nd2 {[%clk 0:02:24.1]} 10... Bxe2 {[%clk 0:02:10.2]} 11. Qxe2 {[%clk
0:02:25]} 11... a6 {[%clk 0:02:08.8]} 12. Rac1 {[%clk 0:02:13.6]} 12... Rb8
{[%clk 0:02:07.8]} 13. e4 {[%clk 0:02:01.6]} 13... Nd7 {[%clk 0:01:20.4]} 14. f4
{[%clk 0:01:56.2]} 14... b5 {[%clk 0:00:56.1]} 15. e5 {[%clk 0:01:54.5]} 15...
dxe5 {[%clk 0:00:42.7]} 16. f5 {[%clk 0:01:25]} 16... Nxc4 {[%clk 0:00:38.4]}
17. Nxc4 {[%clk 0:01:23.4]} 17... bxc4 {[%clk 0:00:38.4]} 18. d6 {[%clk
0:01:19.2]} 18... Nf6 {[%clk 0:00:19.7]} 19. dxe7 {[%clk 0:01:15.2]} 19... Qxe7
{[%clk 0:00:19.8]} 20. Ne4 {[%clk 0:00:43.8]} 20... h6 {[%clk 0:00:17.6]} 21.
Bxf6 {[%clk 0:00:37.5]} 21... Bxf6 {[%clk 0:00:17.9]} 22. fxg6 {[%clk
0:00:35.5]} 22... fxg6 {[%clk 0:00:18.1]} 23. Qxc4+ {[%clk 0:00:36.1]} 23... Kg7
{[%clk 0:00:17.4]} 24. Qxc5 {[%clk 0:00:34.8]} 24... Qxc5+ {[%clk 0:00:16.5]}
25. Rxc5 {[%clk 0:00:35.7]} 25... Rf7 {[%clk 0:00:11.6]} 26. Nxf6 {[%clk
0:00:33]} 26... Rxb2 {[%clk 0:00:09.4]} 27. Ne4 {[%clk 0:00:15.4]} 27... Rxf1+
{[%clk 0:00:09.4]} 28. Kxf1 {[%clk 0:00:16.3]} 28... Rxa2 {[%clk 0:00:09.6]} 29.
Rc7+ {[%clk 0:00:16.4]} 29... Kf8 {[%clk 0:00:09.3]} 30. Nc5 {[%clk 0:00:13.1]}
30... a5 {[%clk 0:00:08.4]} 31. Ne6+ {[%clk 0:00:13.4]} 31... Ke8 {[%clk
0:00:08.4]} 32. Ra7 {[%clk 0:00:13]} 32... a4 {[%clk 0:00:08.4]} 33. Nc7+ {[%clk
0:00:08.1]} 33... Kd7 {[%clk 0:00:07.1]} 34. Nd5+ {[%clk 0:00:08.3]} 34... Kd6
{[%clk 0:00:07.1]} 35. Nc3 {[%clk 0:00:08.4]} 35... Ra1+ {[%clk 0:00:06.3]} 36.
Ke2 {[%clk 0:00:08.9]} 36... a3 {[%clk 0:00:04.5]} 37. Rxa3 {[%clk 0:00:08.8]}
37... Rxa3 {[%clk 0:00:02.6]} 38. Nb5+ {[%clk 0:00:09]} 38... Kd5 {[%clk
0:00:02.9]} 39. Nxa3 {[%clk 0:00:09.9]} 39... Ke4 {[%clk 0:00:03]} 40. Nc2
{[%clk 0:00:10.2]} 40... Kf4 {[%clk 0:00:03]} 41. Kf2 {[%clk 0:00:09.9]} 41...
h5 {[%clk 0:00:03.3]} 42. Ne3 {[%clk 0:00:09.5]} 42... h4 {[%clk 0:00:02.5]} 43.
h3 {[%clk 0:00:09.4]} 43... g5 {[%clk 0:00:02.8]} 44. Ng4 {[%clk 0:00:09.2]}
44... e4 {[%clk 0:00:02.8]} 45. Ne3 {[%clk 0:00:09]} 45... Ke5 {[%clk
0:00:02.9]} 46. Nd1 {[%clk 0:00:05.5]} 46... Kf4 {[%clk 0:00:03.4]} 47. Kf1
{[%clk 0:00:03.5]} 47... g4 {[%clk 0:00:03]} 48. hxg4 {[%clk 0:00:02.3]} 48...
Kxg4 {[%clk 0:00:03.5]} 49. Nf2+ {[%clk 0:00:03.2]} 49... Kf4 {[%clk 0:00:03]}
50. Nh3+ {[%clk 0:00:02.1]} 50... Kg3 {[%clk 0:00:03.3]} 51. Ng1 {[%clk
0:00:02.6]} 51... e3 {[%clk 0:00:02.9]} 52. Ne2+ {[%clk 0:00:03]} 52... Kh2
{[%clk 0:00:02.7]} 53. Nf4 {[%clk 0:00:02.8]} 53... Kg3 {[%clk 0:00:01.8]} 54.
Nh5+ {[%clk 0:00:03.3]} 54... Kg4 {[%clk 0:00:02]} 55. Nf6+ {[%clk 0:00:03.7]}
55... Kg3 {[%clk 0:00:02.6]} 56. Ne4+ {[%clk 0:00:04.1]} 56... Kf4 {[%clk
0:00:03.1]} 57. Nc3 {[%clk 0:00:04.5]} 57... Kg3 {[%clk 0:00:03.6]} 58. Ne2+
{[%clk 0:00:05.2]} 58... Kh2 {[%clk 0:00:04.2]} 59. Nd4 {[%clk 0:00:05.8]} 59...
h3 {[%clk 0:00:02.9]} 60. g4 {[%clk 0:00:05.7]} 60... Kg3 {[%clk 0:00:02.4]} 61.
g5 {[%clk 0:00:06.2]} 61... h2 {[%clk 0:00:03]} 62. Nf5+ {[%clk 0:00:06.3]}
62... Kf4 {[%clk 0:00:03]} 63. Kg2 {[%clk 0:00:06.3]} 63... Kxf5 {[%clk
0:00:01.9]} 64. g6 {[%clk 0:00:07.2]} 64... Kxg6 {[%clk 0:00:02.1]} 0-1